fUSD/lending_fUSD_20260522
["ID","MTS","AMOUNT","RATE_DAILY","PERIOD"]
[422812969,1779445838000,-168.29697578,0.00013625,2]
[422812953,1779445838000,-500.0,0.00013625,2]
[422812963,1779445838000,-500.0,0.00013625,2]
[422812956,1779445838000,-500.0,0.00013625,2]
[422812965,1779445838000,-430.08185109,0.00013625,2]
[422812961,1779445838000,-500.0,0.00013625,2]
[422812960,1779445838000,-500.0,0.00013625,2]
[422812958,1779445838000,-500.0,0.00013625,2]
[422812948,1779445838000,-188.08786119,0.00013625,2]
[422812972,1779445838000,-500.0,0.00013625,2]
[422812978,1779445839000,-150.0,0.00013761,2]
[422812980,1779445839000,-6804.5121,0.00013799,2]
[422812976,1779445839000,-150.0,0.00013668,2]
[422812977,1779445839000,-168.12,0.00013699,2]
[422812981,1779445839000,-30371.30238438,0.000138,2]
[422812979,1779445839000,-252.74891167,0.0001379,2]
[422812999,1779445840000,-500.0,0.00013899,2]
[422813005,1779445840000,-500.0,0.00013899,2]
[422813000,1779445840000,-523.75497223,0.00013899,2]
[422812997,1779445840000,-6663.73712684,0.00013879,2]
[422813006,1779445840000,-500.0,0.00013899,2]
[422812996,1779445840000,-243.54896428,0.00013879,2]
[422813007,1779445840000,-510.74292638,0.00013899,2]
[422812995,1779445840000,-208.7374384,0.00013878,2]
[422812991,1779445840000,-2640.6165469,0.00013847,2]
[422812993,1779445840000,-150.0,0.00013854,2]
[422812992,1779445840000,-2120.79782555,0.00013847,2]
[422812988,1779445840000,-469.01659338,0.00013803,2]
[422812990,1779445840000,-8633.0,0.00013808,2]
[422812986,1779445840000,-3906.96829068,0.000138,2]
[422812987,1779445840000,-2500.0,0.000138,2]
[422812985,1779445840000,-463.72593739,0.000138,2]
[422812984,1779445840000,-509.65562623,0.000138,2]
[422812982,1779445840000,-2827.67731562,0.000138,2]
[422812983,1779445840000,-119.6501457,0.000138,2]
[422813004,1779445840000,-508.99758767,0.00013899,2]
[422812994,1779445840000,-160.0,0.00013878,2]
[422813003,1779445840000,-500.0,0.00013899,2]
[422812989,1779445840000,-154.18225472,0.00013803,2]
[422812998,1779445840000,-150.0,0.00013885,2]
[422813002,1779445840000,-500.0,0.00013899,2]
[422813028,1779445840000,-500.0,0.00013899,2]
[422813026,1779445840000,-500.0,0.00013899,2]
[422813027,1779445840000,-500.0,0.00013899,2]
[422813021,1779445840000,-500.0,0.00013899,2]
[422813025,1779445840000,-500.0,0.00013899,2]
[422813024,1779445840000,-500.0,0.00013899,2]
[422813022,1779445840000,-500.0,0.00013899,2]
[422813020,1779445840000,-500.0,0.00013899,2]
[422813016,1779445840000,-505.43,0.00013899,2]
[422813013,1779445840000,-505.43,0.00013899,2]
[422813023,1779445840000,-500.0,0.00013899,2]
[422813014,1779445840000,-505.43,0.00013899,2]
[422813017,1779445840000,-505.43,0.00013899,2]
[422813018,1779445840000,-505.43,0.00013899,2]
[422813001,1779445840000,-500.0,0.00013899,2]
[422813009,1779445840000,-505.43,0.00013899,2]
[422813015,1779445840000,-505.43,0.00013899,2]
[422813012,1779445840000,-505.43,0.00013899,2]
[422813010,1779445840000,-505.43,0.00013899,2]
[422813008,1779445840000,-500.0,0.00013899,2]
[422813011,1779445840000,-505.43,0.00013899,2]
[422813019,1779445840000,-500.0,0.00013899,2]
[422813058,1779445841000,-647.05641257,0.00013899,2]
[422813066,1779445841000,-500.0,0.00013899,2]
[422813064,1779445841000,-500.0,0.00013899,2]
[422813063,1779445841000,-500.0,0.00013899,2]
[422813060,1779445841000,-500.0,0.00013899,2]
[422813065,1779445841000,-500.0,0.00013899,2]
[422813069,1779445841000,-500.0,0.00013899,2]
[422813062,1779445841000,-500.0,0.00013899,2]
[422813061,1779445841000,-500.0,0.00013899,2]
[422813059,1779445841000,-500.0,0.00013899,2]
[422813067,1779445841000,-500.0,0.00013899,2]
[422813068,1779445841000,-500.0,0.00013899,2]
[422813080,1779445841000,-351.21011865,0.00013899,2]
[422813074,1779445841000,-500.0,0.00013899,2]
[422813078,1779445841000,-500.0,0.00013899,2]
[422813070,1779445841000,-500.0,0.00013899,2]
[422813076,1779445841000,-500.0,0.00013899,2]
[422813073,1779445841000,-500.0,0.00013899,2]
[422813075,1779445841000,-246.02066449,0.00013899,2]
[422813071,1779445841000,-500.0,0.00013899,2]
[422813072,1779445841000,-500.0,0.00013899,2]
[422813081,1779445841000,-1680.0,0.00013945,2]
[422813053,1779445841000,-500.0,0.00013899,2]
[422813079,1779445841000,-500.0,0.00013899,2]
[422813086,1779445841000,-2120.79782555,0.00013997,2]
[422813077,1779445841000,-500.0,0.00013899,2]
[422813057,1779445841000,-500.0,0.00013899,2]
[422813041,1779445841000,-500.0,0.00013899,2]
[422813056,1779445841000,-500.0,0.00013899,2]
[422813082,1779445841000,-150.0,0.00013947,2]
[422813031,1779445841000,-500.0,0.00013899,2]
[422813030,1779445841000,-500.0,0.00013899,2]
[422813029,1779445841000,-500.0,0.00013899,2]
[422813033,1779445841000,-500.0,0.00013899,2]
[422813032,1779445841000,-150.06581077,0.00013899,2]
[422813044,1779445841000,-500.0,0.00013899,2]
[422813043,1779445841000,-477.50622391,0.00013899,2]
[422813034,1779445841000,-500.0,0.00013899,2]
[422813035,1779445841000,-500.0,0.00013899,2]
[422813036,1779445841000,-500.0,0.00013899,2]
[422813040,1779445841000,-500.0,0.00013899,2]
[422813039,1779445841000,-373.63891721,0.00013899,2]
[422813037,1779445841000,-500.0,0.00013899,2]
[422813038,1779445841000,-500.0,0.00013899,2]
[422813042,1779445841000,-500.0,0.00013899,2]
[422813045,1779445841000,-500.0,0.00013899,2]
[422813048,1779445841000,-500.0,0.00013899,2]
[422813047,1779445841000,-500.0,0.00013899,2]
[422813049,1779445841000,-500.0,0.00013899,2]
[422813046,1779445841000,-500.0,0.00013899,2]
[422813051,1779445841000,-500.0,0.00013899,2]
[422813050,1779445841000,-500.0,0.00013899,2]
[422813054,1779445841000,-500.0,0.00013899,2]
[422813055,1779445841000,-500.0,0.00013899,2]
[422813052,1779445841000,-500.0,0.00013899,2]
[422813083,1779445841000,-2640.61654681,0.00013964,2]
[422813104,1779445841000,-500.0,0.00014147,2]
[422813085,1779445841000,-6663.73712681,0.00013992,2]
[422813114,1779445841000,-150.0,0.00014226,2]
[422813115,1779445841000,-1107.5878,0.0001425,2]
[422813116,1779445841000,-3746.61837292,0.0001425,2]
[422813113,1779445841000,-6663.73712681,0.00014219,2]
[422813117,1779445841000,-165.97,0.00014255,2]
[422813119,1779445841000,-2120.79782555,0.00014298,2]
[422813118,1779445841000,-420.0,0.0001427,2]
[422813125,1779445841000,-469.01659334,0.00014352,2]
[422813124,1779445841000,-6663.73712681,0.00014333,2]
[422813084,1779445841000,-469.01659334,0.00013986,2]
[422813128,1779445841000,-237.332129,0.0001438,2]
[422813127,1779445841000,-173.278746,0.0001438,2]
[422813129,1779445841000,-166.09162,0.0001438,2]
[422813132,1779445841000,-250.848352,0.00014411,2]
[422813133,1779445841000,-150.0,0.00014412,2]
[422813130,1779445841000,-150.0,0.00014381,2]
[422813131,1779445841000,-243.54896427,0.0001439,2]
[422813134,1779445841000,-2640.61654681,0.00014432,2]
[422813135,1779445841000,-6663.73712681,0.00014446,2]
[422813137,1779445841000,-2120.79782555,0.00014449,2]
[422813139,1779445841000,-150.0,0.00014505,2]
[422813138,1779445841000,-184.202443,0.00014491,2]
[422813140,1779445841000,-469.01659334,0.00014534,2]
[422813136,1779445841000,-500.0,0.00014447,2]
[422813141,1779445841000,-2640.61654681,0.00014549,2]
[422813123,1779445841000,-223.367133,0.00014321,2]
[422813121,1779445841000,-2640.61654681,0.00014315,2]
[422813126,1779445841000,-163.0,0.0001436,2]
[422813112,1779445841000,-2640.61654681,0.00014198,2]
[422813120,1779445841000,-317.343914,0.00014307,2]
[422813096,1779445841000,-2640.61654681,0.00014081,2]
[422813098,1779445841000,-6663.73712681,0.00014106,2]
[422813097,1779445841000,-545.35,0.00014088,2]
[422813089,1779445841000,-313.897959,0.00014,2]
[422813091,1779445841000,-3546.0,0.00014013,2]
[422813093,1779445841000,-150.0,0.0001404,2]
[422813094,1779445841000,-1588.0,0.0001404,2]
[422813095,1779445841000,-2000.0,0.00014048,2]
[422813090,1779445841000,-1224.0,0.00014013,2]
[422813088,1779445841000,-530.30207749,0.00014,2]
[422813092,1779445841000,-3634.0,0.00014013,2]
[422813100,1779445841000,-150.0,0.00014133,2]
[422813087,1779445841000,-250.0,0.00014,2]
[422813099,1779445841000,-150.0,0.00014133,2]
[422813109,1779445841000,-2120.79782555,0.00014148,2]
[422813111,1779445841000,-500.0,0.00014173,2]
[422813106,1779445841000,-500.0,0.00014147,2]
[422813108,1779445841000,-500.0,0.00014147,2]
[422813103,1779445841000,-500.0,0.00014147,2]
[422813122,1779445841000,-150.0,0.00014319,2]
[422813107,1779445841000,-500.0,0.00014147,2]
[422813105,1779445841000,-500.0,0.00014147,2]
[422813102,1779445841000,-249.71200573,0.00014147,2]
[422813101,1779445841000,-500.0,0.00014147,2]
[422813110,1779445841000,-469.01659334,0.00014169,2]
[422813156,1779445842000,-697.0,0.00014715,5]
[422813151,1779445842000,-1378.0,0.0001468,2]
[422813169,1779445842000,-10000.0,0.000148,2]
[422813159,1779445842000,-2640.61654681,0.00014783,2]
[422813160,1779445842000,-150.0,0.00014784,2]
[422813158,1779445842000,-2120.79782555,0.0001475,2]
[422813163,1779445842000,-500.0,0.00014799,2]
[422813165,1779445842000,-500.0,0.00014799,2]
[422813166,1779445842000,-500.0,0.00014799,2]
[422813154,1779445842000,-243.3141498,0.000147,2]
[422813167,1779445842000,-505.43,0.00014799,2]
[422813155,1779445842000,-861.0,0.00014715,5]
[422813148,1779445842000,-255.0,0.00014633,2]
[422813150,1779445842000,-6663.73712681,0.00014673,2]
[422813149,1779445842000,-2640.61654681,0.00014666,2]
[422813152,1779445842000,-150.0,0.00014691,2]
[422813157,1779445842000,-469.01659334,0.00014717,2]
[422813147,1779445842000,-158.147,0.00014613,2]
[422813142,1779445842000,-6663.73712681,0.0001456,2]
[422813143,1779445842000,-500.0,0.00014576,2]
[422813146,1779445842000,-2956.228,0.00014613,2]
[422813145,1779445842000,-2120.79782555,0.00014599,2]
[422813144,1779445842000,-150.0,0.00014598,2]
[422813161,1779445842000,-6663.73712681,0.00014787,2]
[422813153,1779445842000,-500.0,0.00014699,2]
[422813164,1779445842000,-500.0,0.00014799,2]
[422813186,1779445842000,-300.0,0.00014899,2]
[422813162,1779445842000,-500.0,0.00014799,2]
[422813194,1779445842000,-1299561.56801937,0.000149,2]
[422813185,1779445842000,-300.0,0.00014899,2]
[422813188,1779445842000,-505.43,0.00014899,2]
[422813193,1779445842000,-505.43,0.00014899,2]
[422813189,1779445842000,-505.43,0.00014899,2]
[422813192,1779445842000,-505.43,0.00014899,2]
[422813191,1779445842000,-505.43,0.00014899,2]
[422813187,1779445842000,-500.0,0.00014899,2]
[422813181,1779445842000,-150.0,0.00014877,2]
[422813182,1779445842000,-150.0,0.00014877,2]
[422813180,1779445842000,-150.0,0.00014877,2]
[422813190,1779445842000,-505.43,0.00014899,2]
[422813184,1779445842000,-150.0,0.00014877,2]
[422813179,1779445842000,-408.97081,0.0001486,2]
[422813170,1779445842000,-363.91415597,0.000148,2]
[422813171,1779445842000,-8153.52039842,0.000148,2]
[422813173,1779445842000,-200.0,0.00014847,2]
[422813172,1779445842000,-1499.14943044,0.000148,2]
[422813174,1779445842000,-408.9708,0.0001485,2]
[422813168,1779445842000,-453.80487874,0.000148,2]
[422813176,1779445842000,-363.91415596,0.0001485,2]
[422813177,1779445842000,-8153.52039841,0.0001485,2]
[422813178,1779445842000,-1499.14943042,0.0001485,2]
[422813183,1779445842000,-152.36529488,0.00014877,2]
[422813175,1779445842000,-408.97081,0.0001485,2]
[422813204,1779445843000,-4446.0,0.000149,2]
[422813205,1779445843000,-1051.96676267,0.000149,2]
[422813206,1779445843000,-1743.27883801,0.000149,2]
[422813208,1779445846000,-927.0,0.00013893,2]
[422813211,1779445846000,-26463.42358656,0.000149,2]
[422813209,1779445846000,-162.2094332,0.000147,2]
[422813210,1779445846000,-860.7905668,0.000149,2]
[422813212,1779445847000,-50104.57863556,0.000149,2]
[422813213,1779445847000,-6423.25656448,0.000149,2]
[422813218,1779445874000,150.04,7.221e-05,2]
[422813221,1779445874000,150.04,8.609e-05,2]
[422813220,1779445874000,150.04,8.146e-05,2]
[422813219,1779445874000,150.04,7.684e-05,2]
[422813223,1779445875000,150.04,9.534e-05,2]
[422813222,1779445875000,150.04,9.072e-05,2]
[422813226,1779446103000,222.20704269,0.00018631,60]
[422813227,1779446162000,-150.0,9.997e-05,2]
[422813276,1779446487000,-0.04,9.997e-05,2]
[422813307,1779446608000,330.23,0.00028082,120]
[422813319,1779446723000,150.04,6.12e-05,2]
[422813323,1779446724000,150.04,9.061e-05,2]
[422813322,1779446724000,150.04,8.326e-05,2]
[422813321,1779446724000,150.04,7.591e-05,2]
[422813320,1779446724000,150.04,6.855e-05,2]
[422813325,1779446749000,-260.37813394,0.00010129,2]
[422813324,1779446749000,-150.04,9.796e-05,2]
[422813332,1779446756000,-39.7376622,0.00011973,2]
[422813329,1779446756000,-150.04,0.00011266,2]
[422813331,1779446756000,-215.27762834,0.00011528,2]
[422813330,1779446756000,-208.7374384,0.00011528,2]
[422813328,1779446756000,-500.0,0.00011142,2]
[422813327,1779446756000,-150.04,0.00010531,2]
[422813326,1779446756000,-239.62186606,0.00010129,2]
[422813355,1779446940000,1000.0,0.00028081,120]
[422813401,1779447008000,1163.58,0.00028082,120]
[422813410,1779447032000,-993.68721,0.00011913,2]
[422813424,1779447032000,-255.0,0.00012382,2]
[422813423,1779447032000,-166.66,0.00012338,2]
[422813422,1779447032000,-1630.72,0.0001217,2]
[422813420,1779447032000,-215.27762834,0.0001212,2]
[422813419,1779447032000,-208.7374384,0.0001212,2]
[422813421,1779447032000,-300.0,0.00012169,2]
[422813425,1779447032000,-164.1,0.00012469,2]
[422813418,1779447032000,-165.98,0.00012117,2]
[422813411,1779447032000,-445.64,0.00011961,2]
[422813415,1779447032000,-2251.04,0.00012098,2]
[422813416,1779447032000,-2000.0,0.00012112,2]
[422813413,1779447032000,-150.04,0.00012001,2]
[422813412,1779447032000,-251.5623378,0.00011973,2]
[422813409,1779447032000,-500.0,0.00010029,2]
[422813414,1779447032000,-200.0,0.00012012,2]
[422813426,1779447032000,-2880.41870617,0.00012773,2]
[422813417,1779447032000,-1200.0,0.00012116,2]
[422813429,1779447032000,-693.04329282,0.00012773,2]
[422813446,1779447032000,-150.0,0.00013315,2]
[422813447,1779447032000,-150.0,0.00013315,2]
[422813448,1779447032000,-55.08313166,0.00013315,2]
[422813445,1779447032000,-150.0,0.00013315,2]
[422813443,1779447032000,-150.0,0.00013315,2]
[422813441,1779447032000,-150.0,0.00013315,2]
[422813440,1779447032000,-122.47216448,0.00012949,2]
[422813439,1779447032000,-127.52783552,0.00012949,2]
[422813436,1779447032000,-727.51915184,0.00012883,2]
[422813438,1779447032000,-160.0,0.00012946,2]
[422813434,1779447032000,-343.29292514,0.00012883,2]
[422813432,1779447032000,-741.56240735,0.00012883,2]
[422813435,1779447032000,-1870.88949691,0.00012883,2]
[422813433,1779447032000,-3366.73601876,0.00012883,2]
[422813428,1779447032000,-868.52832,0.00012773,2]
[422813430,1779447032000,-327.70220169,0.00012773,2]
[422813431,1779447032000,-241.0,0.00012802,2]
[422813427,1779447032000,-385.8722162,0.00012773,2]
[422813460,1779447040000,-94.91686834,0.00013315,2]
[422813459,1779447040000,-500.0,0.00011873,2]
[422813462,1779447040000,-335.38,0.00013328,2]
[422813461,1779447040000,-252.41579641,0.00013328,2]
[422813477,1779447041000,-154.18225472,0.00013433,2]
[422813478,1779447041000,-291.3,0.0001347,2]
[422813479,1779447041000,-509.3262425,0.00013475,2]
[422813475,1779447041000,-5000.0,0.00013425,2]
[422813476,1779447041000,-2500.0,0.00013425,2]
[422813473,1779447041000,-1323953.03634729,0.00013407,2]
[422813474,1779447041000,-150.0,0.00013414,2]
[422813482,1779447041000,-1499.14943044,0.00013511,2]
[422813472,1779447041000,-6410.09324054,0.00013407,2]
[422813471,1779447041000,-289.68,0.00013407,2]
[422813469,1779447041000,-104566.76901217,0.00013407,2]
[422813466,1779447041000,-1588.0,0.000134,2]
[422813465,1779447041000,-163.0,0.000134,2]
[422813467,1779447041000,-1588.0,0.000134,2]
[422813468,1779447041000,-150.0,0.000134,2]
[422813463,1779447041000,-1092.20420359,0.00013328,2]
[422813464,1779447041000,-162.64694406,0.00013397,2]
[422813470,1779447041000,-4030.55,0.00013407,2]
[422813481,1779447041000,-4069.43090494,0.00013511,2]
[422813480,1779447041000,-8633.0,0.00013507,2]
[422813487,1779447041000,-500.0,0.00013523,2]
[422813484,1779447041000,-150.0,0.00013512,2]
[422813503,1779447041000,-500.0,0.00013523,2]
[422813501,1779447041000,-500.0,0.00013523,2]
[422813500,1779447041000,-500.0,0.00013523,2]
[422813497,1779447041000,-177.84663553,0.00013523,2]
[422813499,1779447041000,-500.0,0.00013523,2]
[422813498,1779447041000,-260.60415802,0.00013523,2]
[422813496,1779447041000,-150.0,0.00013523,2]
[422813494,1779447041000,-500.0,0.00013523,2]
[422813502,1779447041000,-500.0,0.00013523,2]
[422813490,1779447041000,-500.0,0.00013523,2]
[422813488,1779447041000,-500.0,0.00013523,2]
[422813493,1779447041000,-500.0,0.00013523,2]
[422813491,1779447041000,-500.0,0.00013523,2]
[422813492,1779447041000,-500.0,0.00013523,2]
[422813489,1779447041000,-428.86897646,0.00013523,2]
[422813486,1779447041000,-500.0,0.00013523,2]
[422813485,1779447041000,-170.38,0.00013523,2]
[422813495,1779447041000,-600.2889482,0.00013523,2]
[422813483,1779447041000,-288.15592848,0.00013511,2]
[422813522,1779447042000,-500.0,0.00013523,2]
[422813519,1779447042000,-500.0,0.00013523,2]
[422813524,1779447042000,-372.0,0.00013523,2]
[422813523,1779447042000,-500.0,0.00013523,2]
[422813527,1779447042000,-500.0,0.00013523,2]
[422813526,1779447042000,-500.0,0.00013523,2]
[422813531,1779447042000,-500.0,0.00013523,2]
[422813529,1779447042000,-500.0,0.00013523,2]
[422813532,1779447042000,-500.0,0.00013523,2]
[422813530,1779447042000,-500.0,0.00013523,2]
[422813533,1779447042000,-500.0,0.00013523,2]
[422813534,1779447042000,-500.0,0.00013523,2]
[422813538,1779447042000,-500.0,0.00013523,2]
[422813528,1779447042000,-500.0,0.00013523,2]
[422813521,1779447042000,-500.0,0.00013523,2]
[422813512,1779447042000,-500.0,0.00013523,2]
[422813518,1779447042000,-500.0,0.00013523,2]
[422813517,1779447042000,-500.0,0.00013523,2]
[422813516,1779447042000,-500.0,0.00013523,2]
[422813514,1779447042000,-150.0,0.00013523,2]
[422813515,1779447042000,-200.0,0.00013523,2]
[422813509,1779447042000,-500.0,0.00013523,2]
[422813513,1779447042000,-150.0,0.00013523,2]
[422813507,1779447042000,-500.0,0.00013523,2]
[422813511,1779447042000,-500.0,0.00013523,2]
[422813510,1779447042000,-500.0,0.00013523,2]
[422813508,1779447042000,-500.0,0.00013523,2]
[422813505,1779447042000,-500.0,0.00013523,2]
[422813504,1779447042000,-500.0,0.00013523,2]
[422813506,1779447042000,-500.0,0.00013523,2]
[422813520,1779447042000,-150.0,0.00013523,2]
[422813540,1779447042000,-500.0,0.00013523,2]
[422813550,1779447042000,-500.0,0.00013523,2]
[422813541,1779447042000,-500.0,0.00013523,2]
[422813539,1779447042000,-500.0,0.00013523,2]
[422813570,1779447042000,-16396.63491404,0.00013525,2]
[422813569,1779447042000,-2716.10900583,0.00013525,2]
[422813567,1779447042000,-2075.70576896,0.00013525,2]
[422813561,1779447042000,-500.0,0.00013523,2]
[422813565,1779447042000,-500.0,0.00013524,2]
[422813564,1779447042000,-150.0,0.00013523,2]
[422813559,1779447042000,-500.0,0.00013523,2]
[422813566,1779447042000,-219357.33409081,0.00013525,2]
[422813562,1779447042000,-500.0,0.00013523,2]
[422813563,1779447042000,-508.58471701,0.00013523,2]
[422813560,1779447042000,-500.0,0.00013523,2]
[422813558,1779447042000,-500.0,0.00013523,2]
[422813557,1779447042000,-500.0,0.00013523,2]
[422813555,1779447042000,-500.0,0.00013523,2]
[422813568,1779447042000,-67213.10425603,0.00013525,2]
[422813554,1779447042000,-500.0,0.00013523,2]
[422813536,1779447042000,-500.0,0.00013523,2]
[422813537,1779447042000,-500.0,0.00013523,2]
[422813535,1779447042000,-500.0,0.00013523,2]
[422813545,1779447042000,-500.0,0.00013523,2]
[422813547,1779447042000,-500.0,0.00013523,2]
[422813556,1779447042000,-500.0,0.00013523,2]
[422813544,1779447042000,-500.0,0.00013523,2]
[422813543,1779447042000,-425.77342584,0.00013523,2]
[422813546,1779447042000,-500.0,0.00013523,2]
[422813549,1779447042000,-500.0,0.00013523,2]
[422813552,1779447042000,-626.17123448,0.00013523,2]
[422813553,1779447042000,-500.0,0.00013523,2]
[422813548,1779447042000,-500.0,0.00013523,2]
[422813551,1779447042000,-500.0,0.00013523,2]
[422813542,1779447042000,-500.0,0.00013523,2]
[422813598,1779447046000,-27387.34485601,0.00013525,2]
[422813597,1779447046000,-384.25,0.00013525,2]
[422813601,1779447047000,-353.43268071,0.00013525,2]
[422813599,1779447047000,-2786.293386,0.00013525,2]
[422813600,1779447047000,-7824.16091657,0.00013525,2]
[422813603,1779447047000,-581.0,0.00013525,2]
[422813602,1779447047000,-5334.68776504,0.00013525,2]
[422813611,1779447061000,2343.61,0.00028082,120]
[422813612,1779447128000,1858.977625,7.945e-05,2]
[422813622,1779447300000,-151.78567293,0.0001275,2]
[422813656,1779447479000,167.46,6.189e-05,2]
[422813660,1779447480000,167.46,9.588e-05,2]
[422813659,1779447480000,167.46,8.738e-05,2]
[422813658,1779447480000,167.46,7.889e-05,2]
[422813657,1779447480000,167.46,7.039e-05,2]
[422813661,1779447625000,-151.78567293,0.00010437,2]
[422813669,1779447937000,-0.3454595,0.00010437,2]
[422813668,1779447937000,-150.0,0.00010124,2]
[422813671,1779448064000,-15.32886757,0.00010437,2]
[422813676,1779448140000,1000.0,0.00028081,120]
[422813678,1779448221000,132.85852547,6.07e-05,2]
[422813677,1779448221000,34.60147453,6.07e-05,2]
[422813701,1779448231000,-167.46,0.00011902,2]
[422813698,1779448231000,-655.85593076,0.00011227,2]
[422813699,1779448231000,-196.33406924,0.00011227,2]
[422813700,1779448231000,-152.0,0.00011802,3]
[422813706,1779448231000,-1.11167949,0.00012037,2]
[422813703,1779448231000,-385.47,0.0001201,2]
[422813702,1779448231000,-445.64,0.00011941,2]
[422813704,1779448231000,-1646.97647949,0.0001202,2]
[422813710,1779448231000,-1429.820633,0.00012211,2]
[422813709,1779448231000,-163.46,0.00012136,2]
[422813708,1779448231000,-500.0,0.00012059,2]
[422813705,1779448231000,-256.76352051,0.0001202,2]
[422813707,1779448231000,-330.79832051,0.00012037,2]
[422813713,1779448232000,-102.69131757,0.00012211,2]
[422813714,1779448232000,-331.91,0.00012337,2]
[422813715,1779448232000,-168.52,0.00012577,2]
[422813712,1779448232000,-252.80804943,0.00012211,2]
[422813716,1779448232000,-1200.0,0.00012637,2]
[422813718,1779448232000,-12.51432707,0.0001275,2]
[422813717,1779448232000,-331.91,0.00012638,2]
[422813719,1779448232000,-8689.93828015,0.0001284,2]
[422813721,1779448232000,-346.04021308,0.00012921,2]
[422813723,1779448232000,-450.74380875,0.00012921,2]
[422813722,1779448232000,-500.0,0.00012921,2]
[422813724,1779448232000,-500.0,0.00012921,2]
[422813725,1779448232000,-354.16666764,0.00012921,2]
[422813726,1779448232000,-500.0,0.00012921,2]
[422813728,1779448232000,-72116.9338039,0.00012922,2]
[422813727,1779448232000,-118350.80838827,0.00012922,2]
[422813730,1779448232000,-1254.41808677,0.00012922,2]
[422813729,1779448232000,-81475.37198899,0.00012922,2]
[422813720,1779448232000,-331.71874322,0.00012921,2]
[422813732,1779448237000,-500.0,0.00012921,2]
[422813733,1779448237000,-201.21521527,0.00012921,2]
[422813737,1779448237000,-574.02437997,0.00012921,2]
[422813735,1779448237000,-458.46379346,0.00012921,2]
[422813736,1779448237000,-41.53620654,0.00012921,2]
[422813734,1779448237000,-298.78478473,0.00012921,2]
[422813738,1779448238000,-71.67697815,0.00012921,2]
[422813845,1779448240000,-500.0,0.00012921,2]
[422813844,1779448240000,-500.0,0.00012921,2]
[422813847,1779448240000,-500.0,0.00012921,2]
[422813840,1779448240000,-500.0,0.00012921,2]
[422813842,1779448240000,-500.0,0.00012921,2]
[422813848,1779448240000,-500.0,0.00012921,2]
[422813851,1779448240000,-1591367.20405614,0.00012922,2]
[422813855,1779448240000,-152.0,0.00012961,4]
[422813850,1779448240000,-500.0,0.00012921,2]
[422813854,1779448240000,-261.33388889,0.00012953,2]
[422813853,1779448240000,-331.91,0.00012939,2]
[422813852,1779448240000,-635435.26367593,0.00012922,2]
[422813843,1779448240000,-500.0,0.00012921,2]
[422813849,1779448240000,-194.47446593,0.00012921,2]
[422813846,1779448240000,-500.0,0.00012921,2]
[422813828,1779448240000,-585.4317508,0.00012921,2]
[422813839,1779448240000,-500.0,0.00012921,2]
[422813836,1779448240000,-500.0,0.00012921,2]
[422813832,1779448240000,-500.0,0.00012921,2]
[422813829,1779448240000,-500.0,0.00012921,2]
[422813833,1779448240000,-500.0,0.00012921,2]
[422813835,1779448240000,-500.0,0.00012921,2]
[422813834,1779448240000,-500.0,0.00012921,2]
[422813837,1779448240000,-500.0,0.00012921,2]
[422813831,1779448240000,-500.0,0.00012921,2]
[422813838,1779448240000,-500.0,0.00012921,2]
[422813830,1779448240000,-500.0,0.00012921,2]